bitfinex/quotes_SOLUSD_20250326
["timestamp","ask_amount","ask_price","bid_price","bid_amount"]
[1743011215839,30.14850597,138.59,138.56,8.8426]
[1743011216340,30.14850597,138.59,138.56,1.6258]
[1743011216564,23.64850597,138.58,138.54,7.2179]
[1743011216763,105.58550597,138.57,138.54,7.2179]
[1743011217151,81.937,138.56,138.54,7.2179]
[1743011219966,81.937,138.55,138.54,7.2179]
[1743011220163,23.64850597,138.56,138.53,1.592]
[1743011220360,105.64850597,138.54,138.53,0.063]
[1743011220662,6.5,138.54,138.53,7.2816]
[1743011220963,6.5,138.54,138.53,30.93010597]
[1743011221172,6.5,138.54,138.53,7.2816]
[1743011221947,6.5,138.54,138.53,0.063]
[1743011222866,6.5,138.54,138.53,23.71150597]
[1743011223072,6.5,138.54,138.53,0.063]
[1743011223378,88.5,138.56,138.53,23.71150597]
[1743011223562,88.5,138.56,138.54,23.64850597]
[1743011223762,88.5,138.56,138.53,0.063]
[1743011223962,88.5,138.56,138.53,23.71150597]
[1743011224152,82.0,138.56,138.55,7.2176]
[1743011224454,82.0,138.56,138.55,30.86610597]
[1743011224653,82.0,138.56,138.55,7.2176]
[1743011226968,82.0,138.56,138.55,30.86610597]
[1743011227745,6.5,138.57,138.55,30.86610597]
[1743011228358,6.5,138.57,138.55,7.2176]
[1743011228550,6.5,138.57,138.53,0.063]
[1743011228551,105.64850597,138.56,138.53,0.063]
[1743011228751,82.0,138.55,138.53,7.2815]
[1743011228948,82.0,138.55,138.53,0.063]
[1743011229561,23.64850597,138.54,138.53,0.063]
[1743011229870,23.64850597,138.55,138.53,0.063]
[1743011230452,23.64850597,138.54,138.53,0.063]
[1743011230650,105.64850597,138.54,138.53,0.063]
[1743011232869,82.0,138.54,138.53,0.063]
[1743011234369,23.64850597,138.55,138.53,0.063]
[1743011235873,23.79066754,138.56,138.53,0.063]
[1743011236477,228.26,138.62,138.54,23.64850597]
[1743011236478,88.5,138.55,138.54,23.64850597]
[1743011236773,82.0,138.55,138.53,23.71150597]
[1743011237276,82.0,138.55,138.53,0.063]
[1743011237453,82.0,138.55,138.53,23.71150597]
[1743011237977,82.0,138.55,138.53,0.063]
[1743011239255,105.64850597,138.55,138.53,0.063]
[1743011240077,82.0,138.54,138.53,0.063]
[1743011240983,23.64850597,138.54,138.53,0.063]
[1743011242179,30.86660597,138.54,138.53,0.063]
[1743011242486,23.64850597,138.54,138.53,0.063]
[1743011242793,23.64850597,138.55,138.53,0.063]
[1743011243787,6.5,138.57,138.53,0.063]
[1743011243964,6.5,138.57,138.53,23.71150597]
[1743011244284,6.5,138.58,138.56,7.217]
[1743011244590,6.5,138.58,138.56,30.86550597]
[1743011245472,82.0,138.57,138.56,30.86550597]
[1743011246068,82.0,138.57,138.56,32.48910597]
[1743011248370,45.3507,138.57,138.56,51.13875483]
[1743011248570,0.0001,138.57,138.56,51.13875483]
[1743011248879,6.5,138.6,138.56,51.13875483]
[1743011248880,6.5,138.6,138.56,69.18145483]
[1743011249063,23.64850597,138.62,138.57,23.64850597]
[1743011249266,23.64850597,138.6,138.56,8.8406]
[1743011249566,23.64850597,138.58,138.55,7.2174]
[1743011249765,0.0001,138.57,138.55,7.2174]
[1743011249967,0.0001,138.57,138.55,30.86590597]
[1743011250377,0.0001,138.57,138.55,7.2174]
[1743011252084,0.0001,138.57,138.54,7.2179]
[1743011252085,23.64860597,138.57,138.54,7.2179]
[1743011252297,6.5001,138.56,138.54,7.2179]
[1743011252474,6.5001,138.56,138.53,7.2816]
[1743011253582,30.14860597,138.56,138.53,7.2816]
[1743011254587,30.14860597,138.56,138.53,0.063]
[1743011254803,23.79066754,138.54,138.53,0.0629]
[1743011256193,31.00876754,138.54,138.53,0.0629]
[1743011256681,102.80122237,138.54,138.53,0.0629]
[1743011257272,0.14216157,138.53,138.49,0.03]
[1743011257470,23.64850597,138.5,138.49,0.03]
[1743011257690,30.14850597,138.5,138.49,0.03]
[1743011258392,6.5,138.5,138.49,0.03]
[1743011259083,37.36870597,138.5,138.49,0.03]
[1743011259394,37.51086754,138.5,138.49,0.03]
[1743011260601,30.29066754,138.5,138.49,0.03]
[1743011261278,37.51086754,138.5,138.49,0.03]
[1743011261796,56.1605164,138.5,138.49,0.03]
[1743011263611,23.79066754,138.47,138.43,1.6307]
[1743011263915,81.97,138.46,138.43,1.6307]
[1743011264084,30.14850597,138.45,138.41,30.87310597]
[1743011264287,30.14850597,138.45,138.41,7.2246]
[1743011264909,81.97,138.44,138.4,30.87360597]
[1743011265085,81.97,138.43,138.4,7.2251]
[1743011265287,81.97,138.43,138.4,30.87360597]
[1743011266707,81.97,138.43,138.41,23.64850597]
[1743011266906,81.97,138.43,138.42,23.64850597]
[1743011267699,81.97,138.43,138.41,23.64850597]
[1743011267901,81.97,138.43,138.42,23.64850597]
[1743011268119,81.97,138.43,138.41,23.64850597]
[1743011268625,81.97,138.43,138.42,23.64850597]
[1743011268797,81.97,138.43,138.42,30.87280597]
[1743011272426,6.5,138.45,138.42,30.87280597]
[1743011274714,6.5,138.45,138.44,23.64850597]
[1743011275435,6.5,138.45,138.44,30.87180597]
[1743011276007,81.97,138.46,138.44,30.87180597]
[1743011276927,81.97,138.46,138.44,7.2233]
[1743011284032,81.97,138.46,138.45,23.64850597]
[1743011284542,81.97,138.46,138.44,30.87180597]
[1743011284743,81.97,138.46,138.43,23.64850597]
[1743011285762,81.97,138.46,138.44,0.03]
[1743011289022,89.1923,138.46,138.44,0.03]
[1743011289549,97.19282101,138.45,138.44,0.03]
[1743011290248,15.36498258,138.45,138.44,0.03]
[1743011290941,22.58778258,138.45,138.44,0.03]
[1743011292634,29.08778258,138.45,138.44,0.03]
[1743011296170,28.94562101,138.45,138.44,0.03]
[1743011296328,13.7228,138.45,138.44,0.03]
[1743011298166,28.94562101,138.45,138.44,0.03]
[1743011303565,28.94562101,138.45,138.41,0.03]
[1743011303566,20.0,138.42,138.41,0.03]
[1743011303745,35.22282101,138.42,138.41,0.03]
[1743011305151,42.44712101,138.42,138.41,0.03]
[1743011305482,0.14216157,138.41,138.39,0.03]
[1743011305638,0.14216157,138.39,138.35,0.03]
[1743011305842,15.22282101,138.36,138.35,0.03]
[1743011307072,23.82504242,138.36,138.35,0.03]
[1743011307359,31.19470399,138.36,138.35,0.03]
[1743011308958,37.69470399,138.36,138.35,0.03]
[1743011311773,13.7275,138.36,138.35,0.03]
[1743011312956,7.2275,138.36,138.35,0.03]
[1743011313166,37.55254242,138.36,138.35,0.03]
[1743011315482,37.69470399,138.36,138.35,0.03]
[1743011328898,29.11902986,138.36,138.35,0.03]
[1743011330474,13.7275,138.36,138.35,0.03]
[1743011333897,7.2275,138.36,138.35,0.03]
[1743011334097,13.7275,138.36,138.35,0.03]
[1743011336998,6.5,138.36,138.35,0.03]
[1743011337299,13.7275,138.36,138.35,0.03]
[1743011337993,0.063,138.39,138.35,15.27936829]
[1743011338321,6.5,138.38,138.35,22.50706829]
[1743011338483,7.2264,138.38,138.35,0.03]
[1743011338688,6.5,138.37,138.35,0.03]
[1743011339187,21.74936829,138.37,138.35,0.03]
[1743011340384,28.97666829,138.37,138.35,0.03]
[1743011342694,104.61902986,138.36,138.35,0.03]
[1743011342894,22.61902986,138.36,138.35,0.03]
[1743011350609,69.59276157,138.32,138.21,21.0034006]
[1743011350809,15.24936829,138.26,138.21,36.25276889]
[1743011351013,6.5,138.25,138.21,23.25356829]
[1743011351218,6.5,138.25,138.21,15.2395]
[1743011351410,6.5,138.25,138.22,15.24936829]
[1743011351721,6.5,138.25,138.21,30.48886829]
[1743011353388,6.5,138.25,138.23,15.24936829]
[1743011354816,6.5,138.25,138.22,15.24936829]
[1743011355312,6.5,138.25,138.23,7.2343]
[1743011355502,6.5,138.25,138.24,15.24936829]
[1743011355912,6.5,138.25,138.23,22.48366829]
[1743011357794,6.5,138.25,138.23,7.2343]
[1743011363309,6.5,138.25,138.23,22.48366829]
[1743011363513,6.5,138.25,138.24,15.24936829]
[1743011363902,82.0,138.27,138.24,40.56746829]
[1743011364107,82.0,138.29,138.26,15.24936829]
[1743011364316,97.24936829,138.29,138.24,40.56746829]
[1743011367718,15.24936829,138.28,138.24,40.56746829]
[1743011368723,97.31236829,138.29,138.24,40.56746829]
[1743011369104,82.0,138.28,138.24,40.56746829]
[1743011371037,82.0,138.28,138.25,18.64964886]
[1743011371329,82.0,138.28,138.26,15.24936829]
[1743011371502,82.0,138.28,138.24,40.56746829]
[1743011371702,6.5,138.27,138.24,25.3181]
[1743011371913,6.5,138.27,138.24,40.56746829]
[1743011373429,6.5,138.27,138.25,15.24936829]
[1743011373720,6.5,138.27,138.26,15.24936829]
[1743011374130,6.5,138.27,138.25,15.24936829]
[1743011374708,6.5,138.27,138.26,7.2327]
[1743011375226,0.063,138.29,138.26,7.2327]
[1743011376311,0.063,138.29,138.26,22.48206829]
[1743011376511,0.063,138.29,138.26,7.2327]
[1743011377627,0.063,138.29,138.26,22.48206829]
[1743011378734,0.063,138.29,138.25,7.233]
[1743011379335,0.063,138.29,138.25,22.48236829]
[1743011380433,0.063,138.29,138.26,18.64964886]
[1743011380621,0.063,138.29,138.26,33.89901715]
[1743011380824,0.063,138.29,138.25,22.48236829]
[1743011382637,0.063,138.29,138.26,15.24936829]
[1743011384417,0.063,138.29,138.26,33.89901715]
[1743011385628,0.063,138.29,138.27,7.2322]
[1743011388145,0.063,138.29,138.25,15.24936829]
[1743011388451,15.24936829,138.28,138.24,0.03]
[1743011388824,97.31236829,138.29,138.24,0.03]
[1743011389123,97.31236829,138.29,138.24,15.27936829]
[1743011389326,82.063,138.29,138.26,15.24936829]
[1743011390346,82.063,138.29,138.27,15.24936829]
[1743011391346,82.063,138.29,138.28,7.2317]
[1743011391553,82.063,138.29,138.26,15.24936829]
[1743011391840,82.063,138.29,138.26,22.48206829]
[1743011392149,82.063,138.29,138.26,7.2327]
[1743011392326,82.063,138.29,138.26,22.48206829]
[1743011392833,0.063,138.29,138.26,22.48206829]
[1743011400324,0.063,138.29,138.26,7.2327]
[1743011401131,0.063,138.29,138.26,22.48206829]
[1743011403332,0.063,138.29,138.27,15.24936829]
[1743011404442,0.063,138.29,138.26,22.48206829]
[1743011406867,0.063,138.29,138.27,15.24936829]
[1743011407361,0.063,138.29,138.27,22.48126829]
[1743011408755,15.24936829,138.28,138.25,0.03]
[1743011408943,0.063,138.29,138.25,0.03]
[1743011408944,15.24936829,138.27,138.25,0.03]
[1743011409149,6.48,138.26,138.25,0.03]
[1743011410970,6.48,138.26,138.25,15.27936829]
[1743011411156,82.0,138.28,138.25,33.92901715]
[1743011411340,82.0,138.28,138.27,15.24936829]
[1743011411534,82.0,138.28,138.27,22.48156829]
[1743011412555,0.063,138.29,138.27,22.48156829]
[1743011413056,0.063,138.29,138.28,15.24936829]
[1743011413382,0.063,138.29,138.27,15.24936829]
[1743011414159,0.063,138.29,138.26,15.24936829]
[1743011414367,0.063,138.29,138.25,33.92901715]
[1743011414552,0.063,138.29,138.25,41.16221715]
[1743011414974,0.063,138.29,138.25,33.92901715]
[1743011415464,0.063,138.29,138.26,15.24936829]
[1743011417569,0.063,138.29,138.28,15.24936829]
[1743011417754,0.063,138.29,138.28,22.48106829]
[1743011417943,0.063,138.29,138.25,79.67712202]
[1743011417944,0.063,138.29,138.27,15.24936829]
[1743011418271,0.063,138.29,138.27,22.48146829]
[1743011419967,0.063,138.29,138.28,15.24936829]
[1743011420971,0.063,138.29,138.28,34.04117872]
[1743011421368,0.063,138.29,138.28,33.89901715]
[1743011421960,0.063,138.29,138.28,41.13071715]
[1743011422164,0.063,138.29,138.28,15.24936829]
[1743011422369,0.063,138.29,138.27,15.24936829]
[1743011422672,0.063,138.29,138.28,15.24936829]
[1743011424759,0.063,138.29,138.25,18.67964886]
[1743011424958,0.063,138.29,138.25,41.16221715]
[1743011425159,0.063,138.29,138.26,15.24936829]
[1743011426681,0.063,138.29,138.26,22.48196829]
[1743011427264,0.063,138.29,138.26,15.24936829]
[1743011427785,0.063,138.29,138.26,22.48196829]
[1743011427965,0.063,138.29,138.27,15.24936829]
[1743011428858,0.063,138.29,138.26,22.48196829]
[1743011430577,0.063,138.29,138.27,15.24936829]
[1743011430783,0.063,138.29,138.26,22.48196829]
[1743011433398,0.063,138.29,138.28,15.24936829]
[1743011434267,0.063,138.29,138.27,15.24936829]
[1743011434476,0.063,138.29,138.26,7.2326]
[1743011434477,0.063,138.29,138.26,22.48196829]
[1743011434778,0.063,138.29,138.26,7.2326]
[1743011434977,0.063,138.29,138.26,22.48196829]
[1743011435181,0.063,138.29,138.27,15.24936829]
[1743011435789,0.063,138.29,138.27,22.48106829]
[1743011437569,0.063,138.29,138.27,7.2317]
[1743011437971,0.063,138.29,138.27,22.48106829]
[1743011443423,0.063,138.29,138.26,22.48206829]
[1743011445193,0.063,138.29,138.26,7.2327]
[1743011445397,0.063,138.29,138.25,0.03]
[1743011445398,15.31236829,138.29,138.25,0.03]
[1743011445778,0.063,138.29,138.25,0.03]
[1743011446489,15.31236829,138.29,138.25,0.03]
[1743011447398,15.31236829,138.29,138.25,7.2631]
[1743011447587,22.54356829,138.29,138.25,7.2631]
[1743011448303,22.54356829,138.29,138.25,0.03]
[1743011448878,15.31236829,138.29,138.25,0.03]
[1743011449191,0.063,138.29,138.26,15.24936829]
[1743011449591,0.063,138.29,138.27,7.2322]
[1743011449901,0.063,138.29,138.27,22.48156829]
[1743011450277,0.063,138.29,138.27,7.2322]
[1743011451301,0.063,138.29,138.26,22.48176829]
[1743011452184,0.063,138.29,138.25,22.51236829]
[1743011454496,15.31236829,138.29,138.25,22.51236829]
[1743011454797,0.063,138.29,138.25,22.51236829]
[1743011457300,0.063,138.29,138.26,15.24936829]
[1743011458506,0.063,138.29,138.25,22.51236829]
[1743011462389,15.31236829,138.29,138.25,0.03]
[1743011462592,15.24936829,138.27,138.25,0.03]
[1743011462792,15.24936829,138.26,138.25,0.03]
[1743011464286,104.48186829,138.27,138.25,0.03]
[1743011464590,15.24936829,138.26,138.25,0.03]
[1743011466227,21.91912986,138.26,138.25,0.03]
[1743011466682,29.15182986,138.26,138.25,0.03]
[1743011466884,0.063,138.29,138.25,15.27936829]
[1743011467095,0.063,138.29,138.27,15.24936829]
[1743011467289,0.063,138.29,138.28,15.24936829]
[1743011469002,0.063,138.29,138.28,22.48106829]
[1743011469191,0.063,138.29,138.28,7.2317]
[1743011469691,0.063,138.29,138.27,22.48136829]
[1743011470006,0.063,138.29,138.26,7.2326]
[1743011470213,0.063,138.29,138.25,15.27936829]
[1743011470510,0.063,138.29,138.26,15.24936829]
[1743011470706,0.063,138.29,138.27,15.24936829]
[1743011471085,0.063,138.29,138.27,22.48126829]
[1743011471489,0.063,138.29,138.27,7.2319]
[1743011471694,0.063,138.29,138.27,22.48126829]
[1743011471890,0.063,138.29,138.27,7.2319]
[1743011472095,0.063,138.29,138.26,22.48196829]
[1743011472710,0.063,138.29,138.25,7.263]
[1743011473018,0.063,138.29,138.26,15.24936829]
[1743011474019,0.063,138.29,138.25,15.27936829]
[1743011474320,15.24936829,138.28,138.25,0.03]
[1743011474913,97.31236829,138.29,138.25,0.03]
[1743011475210,15.24936829,138.28,138.25,0.03]
[1743011476008,97.31236829,138.29,138.25,22.51256829]
[1743011476602,82.063,138.29,138.25,22.51256829]
[1743011476930,0.063,138.29,138.25,25.91284886]
[1743011477104,0.063,138.29,138.28,15.24936829]
[1743011477798,0.063,138.29,138.28,35.63237872]
[1743011477998,0.063,138.29,138.28,42.86407872]
[1743011478934,0.063,138.29,138.28,51.44743862]
[1743011479532,0.063,138.29,138.28,51.47743862]
[1743011482131,0.063,138.29,138.28,51.47743862]
[1743011483832,0.063,138.29,138.28,44.10357705]
[1743011484535,0.063,138.29,138.28,27.50254886]
[1743011484706,0.063,138.29,138.28,51.33527705]
[1743011485529,0.063,138.29,138.28,44.10357705]
[1743011485733,0.063,138.29,138.28,27.50254886]
[1743011486108,0.063,138.29,138.28,51.47743862]
[1743011488943,0.063,138.29,138.28,18.67964886]
[1743011489605,0.063,138.29,138.28,25.91134886]
[1743011489846,0.063,138.29,138.28,49.74407705]
[1743011490646,0.063,138.29,138.28,25.91134886]
[1743011491345,0.063,138.29,138.28,18.67964886]
[1743011492760,0.063,138.29,138.28,25.91134886]
[1743011493070,0.063,138.29,138.28,26.05351043]
[1743011493244,0.063,138.29,138.28,132.62840019]
[1743011493444,0.063,138.29,138.28,140.52046176]
[1743011494042,0.0001,138.29,138.28,140.52046176]
[1743011494450,23.83272819,138.37,138.32,20.14216157]
[1743011494674,23.83272819,138.37,138.33,18.64964886]
[1743011495343,23.83272819,138.35,138.32,0.14216157]
[1743011495931,23.83272819,138.33,138.3,82.6]
[1743011496263,23.83272819,138.32,138.28,1.78726157]
[1743011496468,23.83272819,138.31,138.28,0.03]
[1743011496836,23.83272819,138.31,138.28,18.67964886]
[1743011497335,31.06262819,138.32,138.28,25.91124886]
[1743011497641,31.06262819,138.32,138.28,18.67964886]
[1743011497859,31.06262819,138.32,138.28,25.91124886]
[1743011498357,31.06262819,138.32,138.28,18.67964886]
[1743011498561,23.83272819,138.3,138.28,18.67964886]
[1743011499058,15.26208817,138.3,138.28,18.67964886]
[1743011499235,15.26208817,138.31,138.28,18.67964886]
[1743011499944,22.49238817,138.31,138.28,18.67964886]
[1743011500257,15.26208817,138.31,138.28,18.67964886]
[1743011500434,22.49178817,138.32,138.28,18.67964886]
[1743011500750,28.97128817,138.33,138.28,41.17323703]
[1743011500937,6.48,138.33,138.29,15.40424974]
[1743011501139,6.48,138.33,138.3,18.64964886]
[1743011501457,28.97118817,138.33,138.29,0.14216157]
[1743011501644,28.97118817,138.33,138.29,18.79181043]
[1743011502046,15.26208817,138.32,138.29,0.14216157]
[1743011502361,15.32508817,138.31,138.28,0.03]
[1743011504058,7.2306,138.3,138.28,0.03]
[1743011505240,22.55538817,138.31,138.28,0.03]
[1743011505438,7.2933,138.31,138.28,0.03]
[1743011506670,15.32508817,138.31,138.28,0.03]
[1743011507373,0.063,138.31,138.28,0.03]
[1743011510241,0.063,138.31,138.28,15.29208817]
[1743011511160,0.063,138.31,138.28,0.03]
[1743011514072,0.063,138.31,138.28,22.52358817]
[1743011514963,0.063,138.31,138.29,33.91173703]
[1743011515973,0.063,138.31,138.3,34.0538986]
[1743011516148,0.063,138.31,138.3,41.2844986]
[1743011516680,0.063,138.31,138.3,34.0538986]
[1743011517568,0.063,138.31,138.3,41.2844986]
[1743011517875,0.063,138.31,138.3,34.0538986]
[1743011518446,0.063,138.31,138.3,41.2844986]
[1743011518952,0.063,138.31,138.3,34.0538986]
[1743011519372,0.063,138.31,138.28,97.89208817]
[1743011519877,7.2931,138.31,138.28,97.89208817]
[1743011520175,7.2931,138.31,138.28,82.63]
[1743011520347,15.26208817,138.3,138.28,0.03]
[1743011522060,22.49308817,138.3,138.28,0.03]
[1743011522457,29.03538817,138.31,138.28,0.03]
[1743011523973,6.543,138.31,138.28,0.03]
[1743011524175,13.7733,138.31,138.28,15.29208817]
[1743011524475,13.7733,138.31,138.28,0.03]
[1743011524971,7.2933,138.31,138.28,0.03]
[1743011525267,22.55538817,138.31,138.28,0.03]
[1743011526576,0.063,138.31,138.28,0.03]
[1743011526983,7.2933,138.31,138.28,0.03]
[1743011528086,104.55538817,138.31,138.28,0.03]
[1743011528292,22.49318817,138.29,138.28,0.03]
[1743011530563,97.32508817,138.31,138.28,0.03]
[1743011531168,82.063,138.31,138.28,0.03]
[1743011531777,0.063,138.31,138.28,15.29208817]
[1743011531965,0.063,138.31,138.29,15.26208817]
[1743011532477,0.063,138.31,138.29,22.49288817]
[1743011532967,0.063,138.31,138.3,15.26208817]
[1743011533169,0.063,138.31,138.3,33.91173703]
[1743011533687,0.063,138.31,138.3,34.0538986]
[1743011533872,0.063,138.31,138.3,35.5726986]
[1743011534259,0.063,138.31,138.3,35.71486017]
[1743011534486,6.48,138.38,138.34,18.64964886]
[1743011534789,6.48,138.38,138.34,33.91173703]
[1743011535875,6.48,138.38,138.34,41.14013703]
[1743011536666,6.48,138.38,138.35,15.26208817]
[1743011537188,13.7064,138.38,138.34,33.91173703]
[1743011537498,6.48,138.38,138.34,33.91173703]
[1743011537870,6.48,138.38,138.34,41.14013703]
[1743011538181,22.55118817,138.39,138.34,41.14013703]
[1743011538484,22.55118817,138.39,138.35,15.26208817]
[1743011538671,0.063,138.39,138.35,15.26208817]
[1743011538880,0.063,138.39,138.37,15.26208817]
[1743011539788,0.063,138.39,138.36,33.91173703]
[1743011539983,0.063,138.39,138.35,15.26208817]
[1743011539984,15.32508817,138.39,138.35,15.26208817]
[1743011540186,15.32508817,138.39,138.34,15.26208817]
[1743011540574,15.32508817,138.39,138.35,15.26208817]
[1743011540999,0.063,138.39,138.36,15.26208817]
[1743011542996,0.063,138.39,138.36,22.48948817]
[1743011543775,0.063,138.39,138.37,15.26208817]
[1743011544373,0.063,138.39,138.37,22.48878817]
[1743011547798,0.063,138.39,138.38,34.0538986]
[1743011548602,0.063,138.39,138.38,41.2802986]
[1743011553904,0.063,138.39,138.38,102.61297442]
[1743011554103,0.063,138.43,138.42,18.64964886]
[1743011554309,0.063,138.43,138.42,33.91173703]
[1743011554805,0.063,138.43,138.42,118.36866017]
[1743011556025,0.063,138.43,138.42,125.4507986]
[1743011556397,0.063,138.43,138.42,18.64964886]
[1743011557187,0.063,138.43,138.4,22.62934974]
[1743011557401,0.063,138.43,138.39,89.8257]
[1743011557594,0.063,138.43,138.4,18.64964886]
[1743011557810,15.26208817,138.41,138.37,18.64964886]
[1743011558017,15.26208817,138.39,138.35,22.63204974]
[1743011558311,15.26208817,138.38,138.34,7.2283]
[1743011558686,15.26208817,138.38,138.34,18.79181043]
[1743011559015,23.81715202,138.37,138.33,89.8288]
[1743011559195,23.81715202,138.37,138.32,23.95931359]
[1743011559402,23.81715202,138.36,138.33,18.64964886]
[1743011559723,6.46,138.35,138.33,18.64964886]
[1743011559892,6.46,138.35,138.34,42.46680088]
[1743011560093,6.46,138.35,138.34,49.69530088]
[1743011560599,82.0,138.39,138.34,49.69530088]
[1743011560802,6.46,138.38,138.34,49.69530088]
[1743011562124,6.46,138.38,138.34,67.76670088]
[1743011562301,6.46,138.38,138.36,18.64964886]
[1743011563540,6.46,138.38,138.36,42.46680088]
[1743011564409,6.46,138.38,138.37,7.227]
[1743011565413,6.46,138.38,138.37,49.83596245]
[1743011565598,0.063,138.39,138.38,18.64964886]
[1743011566823,0.063,138.39,138.38,25.87604886]
[1743011568217,0.063,138.39,138.38,49.83536245]
[1743011571805,0.063,138.39,138.37,82.6]
[1743011572023,23.88015202,138.39,138.35,18.64964886]
[1743011572219,23.88015202,138.39,138.35,7.2279]
[1743011572220,23.81715202,138.38,138.35,7.2279]
[1743011572421,23.81715202,138.38,138.34,23.81715202]
[1743011573557,23.81715202,138.38,138.35,7.228]
[1743011573714,23.81715202,138.36,138.33,18.64964886]
[1743011574116,30.27715202,138.37,138.33,31.04595202]
[1743011575129,30.27715202,138.37,138.33,18.64964886]
[1743011576818,23.81715202,138.36,138.33,18.64964886]
[1743011577433,23.81715202,138.36,138.33,25.87854886]
[1743011577745,31.04485202,138.36,138.31,23.84715202]
[1743011577927,23.81715202,138.35,138.31,18.67964886]
[1743011578741,23.81715202,138.36,138.31,49.72670088]
[1743011579241,23.81715202,138.35,138.31,25.90954886]
[1743011581144,23.81715202,138.35,138.31,49.72670088]
[1743011581322,30.27715202,138.37,138.32,23.81715202]
[1743011581531,23.81715202,138.37,138.32,23.81715202]
[1743011581835,30.27715202,138.36,138.31,67.80200088]
[1743011582626,6.68,138.39,138.32,23.95931359]
[1743011582831,0.063,138.39,138.35,42.46680088]
[1743011583147,6.46,138.38,138.35,18.64964886]
[1743011583534,23.81715202,138.37,138.33,18.64964886]
[1743011583761,23.81715202,138.36,138.33,7.2289]
[1743011584645,23.81715202,138.37,138.33,7.2289]
[1743011585150,23.81715202,138.36,138.33,7.2289]
[1743011586068,102.005,138.38,138.33,7.2289]
[1743011586069,23.81715202,138.37,138.33,7.2289]
[1743011587254,112.27715202,138.38,138.34,18.64964886]
[1743011587839,112.27715202,138.38,138.35,7.228]
[1743011589252,30.27715202,138.38,138.35,7.228]
[1743011590243,23.81715202,138.37,138.34,25.87794886]
[1743011590960,30.27715202,138.38,138.34,25.87794886]
[1743011591658,6.46,138.38,138.34,49.69510088]
[1743011592155,6.46,138.38,138.34,67.76650088]
[1743011592459,30.34015202,138.39,138.34,67.76650088]
[1743011592751,0.063,138.39,138.36,18.64964886]
[1743011594157,0.063,138.39,138.37,7.227]
[1743011596039,0.063,138.39,138.37,31.04415202]
[1743011596442,0.063,138.39,138.38,42.60896245]
[1743011596653,0.063,138.43,138.39,0.14216157]
[1743011596835,0.063,138.43,138.41,23.81715202]
[1743011597459,0.063,138.43,138.42,7.2243]
[1743011598754,0.063,138.43,138.42,49.83326245]
[1743011599635,0.0001,138.43,138.42,49.83326245]
[1743011604268,0.0001,138.43,138.42,50.11758559]
[1743011605344,0.0001,138.43,138.42,132.71758559]
[1743011613466,0.0001,138.43,138.42,132.43326245]
[1743011615765,0.0001,138.43,138.42,132.71758559]
[1743011615970,0.0001,138.45,138.44,42.75112402]
[1743011616973,0.0001,138.45,138.44,34.14729483]
[1743011617772,0.0001,138.45,138.44,41.5127564]
[1743011618368,0.0001,138.45,138.44,124.1127564]
[1743011618875,0.0001,138.45,138.44,132.66466063]
[1743011623253,0.0001,138.45,138.44,132.52249906]
[1743011623558,0.0001,138.45,138.44,132.38033749]
[1743011624970,0.0001,138.45,138.44,132.52249906]
[1743011626375,0.0001,138.45,138.44,132.38033749]
[1743011628475,0.0001,138.45,138.43,7.2236]
[1743011636785,0.0001,138.45,138.43,30.98882706]
[1743011636961,0.0001,138.45,138.43,7.2236]
[1743011643590,0.0001,138.45,138.43,22.47839643]
[1743011646892,0.0001,138.45,138.43,7.2536]
[1743011647279,0.0001,138.45,138.43,22.47839643]